bitfinex/quotes_BTCUSD_20260215
["timestamp","ask_amount","ask_price","bid_price","bid_amount"]
[1771131362076,0.025,70162.0,70140.0,0.00012]
[1771131362324,0.07126672,70159.0,70149.0,0.0712763]
[1771131362548,0.07127245,70155.0,70150.0,0.4074]
[1771131363511,0.07123946,70186.0,70177.0,0.04896445]
[1771131363708,0.07123946,70186.0,70170.0,0.00012]
[1771131363709,0.19102981,70184.0,70172.0,0.0712534]
[1771131363907,0.16251528,70184.0,70178.0,0.4322]
[1771131364086,0.07124337,70182.0,70178.0,0.4322]
[1771131364294,0.0230578,70180.0,70179.0,0.34092]
[1771131364497,0.0016719,70180.0,70179.0,0.34092]
[1771131364740,0.0230578,70181.0,70179.0,0.00012988]
[1771131364872,0.0230578,70181.0,70179.0,0.34104988]
[1771131365306,0.0230578,70183.0,70179.0,0.34104988]
[1771131365506,0.0230578,70183.0,70172.0,0.0360031]
[1771131365760,0.07124333,70182.0,70173.0,0.4322]
[1771131365935,0.07124556,70180.0,70178.0,0.002]
[1771131366164,0.07124638,70179.0,70178.0,0.002]
[1771131366363,0.07124774,70178.0,70173.0,0.4322]
[1771131366570,0.07124638,70179.0,70173.0,0.4322]
[1771131366774,0.0230578,70180.0,70173.0,0.4322]
[1771131366979,0.07167647,70183.0,70174.0,0.07125146]
[1771131367104,0.00043371,70183.0,70174.0,0.07125146]
[1771131367307,0.005,70179.0,70178.0,0.002]
[1771131367502,0.07124343,70182.0,70174.0,0.07125146]
[1771131367884,0.002,70180.0,70173.0,0.50545243]
[1771131369098,0.02349151,70183.0,70176.0,0.0712487]
[1771131369481,0.01,70179.0,70178.0,0.003]
[1771131369685,0.02349151,70183.0,70176.0,0.0712487]
[1771131369889,0.00043371,70183.0,70177.0,0.07124841]
[1771131370084,0.00043371,70183.0,70177.0,0.16604759]
[1771131370337,0.00043371,70183.0,70180.0,0.07124488]
[1771131370980,0.00043371,70183.0,70181.0,0.07124433]
[1771131371179,0.07124669,70179.0,70175.0,0.34096]
[1771131371427,0.00043371,70183.0,70173.0,0.07125198]
[1771131371722,0.00043371,70183.0,70174.0,0.34092]
[1771131371723,0.07124608,70180.0,70174.0,0.34092]
[1771131372133,0.0230578,70182.0,70174.0,0.34092]
[1771131372429,0.07124335,70182.0,70177.0,0.002]
[1771131372651,0.07124335,70182.0,70174.0,0.41217124]
[1771131372847,0.07124446,70181.0,70173.0,0.07125217]
[1771131373049,0.0230578,70179.0,70175.0,0.34096]
[1771131373606,0.0230578,70179.0,70177.0,0.002]
[1771131373806,0.0230578,70179.0,70176.0,0.34096]
[1771131374606,0.0290578,70179.0,70176.0,0.41220938]
[1771131374805,0.006,70179.0,70176.0,0.34096]
[1771131375841,0.02361799,70180.0,70176.0,0.34096]
[1771131376034,0.002,70179.0,70176.0,0.34296]
[1771131376451,0.09486339,70180.0,70176.0,0.34096]
[1771131376654,0.003,70179.0,70176.0,0.34296]
[1771131376861,0.02413799,70190.0,70176.0,0.34096]
[1771131377068,0.0004,70191.0,70184.0,0.07124042]
[1771131377273,1e-08,70192.0,70190.0,0.07123521]
[1771131377473,1e-08,70192.0,70191.0,0.06410418]
[1771131377899,1e-08,70192.0,70190.0,0.00013005]
[1771131379918,0.01000001,70192.0,70190.0,0.00313005]
[1771131380095,1e-08,70192.0,70190.0,0.00013005]
[1771131380484,0.01200001,70192.0,70190.0,0.07423489]
[1771131380700,0.0004,70195.0,70188.0,0.07123724]
[1771131380890,0.00053015,70195.0,70194.0,0.07123115]
[1771131381407,0.0004,70198.0,70194.0,0.07123115]
[1771131381626,0.0004,70198.0,70193.0,0.07123186]
[1771131383191,0.0084,70198.0,70193.0,0.07423186]
[1771131383487,0.0004,70199.0,70194.0,0.07123089]
[1771131383687,0.01,70198.0,70194.0,0.07123089]
[1771131383895,0.07122479,70201.0,70194.0,0.07123089]
[1771131384045,0.07122479,70201.0,70193.0,0.07123185]
[1771131384248,0.07122493,70202.0,70193.0,0.07123185]
[1771131384451,0.07122405,70201.0,70193.0,0.07127685]
[1771131384655,0.015,70198.0,70193.0,0.07427685]
[1771131385255,0.07122549,70200.0,70193.0,0.07427685]
[1771131385702,0.07122405,70201.0,70192.0,0.05550238]
[1771131386286,0.07122572,70200.0,70193.0,0.0732315]
[1771131386485,0.07122572,70200.0,70193.0,0.0712315]
[1771131387314,0.006,70201.0,70198.0,0.0569684]
[1771131387519,0.0064,70201.0,70198.0,0.0569684]
[1771131387698,0.0064,70201.0,70197.0,0.34096]
[1771131387699,0.0004,70201.0,70197.0,0.34096]
[1771131387892,0.006,70200.0,70197.0,0.34096]
[1771131388515,0.006,70200.0,70197.0,0.33705626]
[1771131388916,0.006,70200.0,70198.0,0.0712263]
[1771131389251,0.0004,70201.0,70199.0,0.07122608]
[1771131389405,0.0004,70201.0,70198.0,0.0712263]
[1771131389609,0.0024,70201.0,70198.0,0.0712263]
[1771131389827,0.0004,70201.0,70199.0,0.07118215]
[1771131390030,0.001,70200.0,70199.0,0.07118215]
[1771131390395,0.0004,70201.0,70199.0,0.07118215]
[1771131390571,0.0004,70201.0,70199.0,0.07086906]
[1771131390774,0.0104,70201.0,70197.0,0.33705626]
[1771131390968,0.07162473,70201.0,70197.0,0.33705626]
[1771131391803,0.0004,70201.0,70197.0,0.33705626]
[1771131392009,0.0004,70201.0,70197.0,0.19232383]
[1771131392344,0.01,70200.0,70197.0,0.19232383]
[1771131392546,0.0004,70201.0,70197.0,0.19232383]
[1771131392902,0.0104,70201.0,70197.0,0.19232383]
[1771131393110,0.0104,70201.0,70199.0,0.07122608]
[1771131393274,0.0004,70205.0,70202.0,0.07122276]
[1771131393480,0.008,70200.0,70199.0,0.07122588]
[1771131393656,0.07162032,70205.0,70199.0,0.07122588]
[1771131394063,0.0004,70205.0,70197.0,0.19232383]
[1771131394291,0.0004,70205.0,70199.0,0.07122514]
[1771131395035,0.0004,70205.0,70191.0,0.28493403]
[1771131395036,0.02361799,70204.0,70190.0,0.00012]
[1771131395192,0.29856532,70200.0,70197.0,0.34096]
[1771131395380,0.29856532,70200.0,70190.0,0.09156]
[1771131395381,0.07122518,70200.0,70195.0,0.34096]
[1771131395586,0.02361799,70199.0,70195.0,0.34096]
[1771131395799,0.07162486,70201.0,70190.0,0.00032]
[1771131395800,0.0712309,70195.0,70190.0,0.00032]
[1771131395997,0.02361799,70196.0,70190.0,0.00032]
[1771131396396,0.02361799,70196.0,70189.0,0.07123615]
[1771131397279,0.02561799,70196.0,70189.0,0.07123615]
[1771131397634,0.02361799,70196.0,70189.0,0.07123615]
[1771131398179,0.09484718,70196.0,70189.0,0.07123615]
[1771131398374,0.09484718,70196.0,70188.0,0.07123694]
[1771131398923,0.07123123,70194.0,70186.0,0.07123904]
[1771131399125,0.0132613,70193.0,70180.0,0.00012]
[1771131399339,0.0132613,70193.0,70179.0,0.0002]
[1771131399340,0.07124303,70183.0,70179.0,0.0002]
[1771131399546,0.02361799,70183.0,70175.0,0.0002]
[1771131399748,0.02361799,70180.0,70175.0,0.0002]
[1771131400587,0.02361799,70180.0,70176.0,0.0012]
[1771131401918,0.02344316,70179.0,70176.0,0.0002]
[1771131402157,0.07100243,70171.0,70168.0,0.0002]
[1771131402358,0.07100243,70171.0,70168.0,0.07145743]
[1771131402519,0.09444559,70171.0,70168.0,0.0002]
[1771131403285,0.07100243,70171.0,70168.0,0.00063371]
[1771131403446,0.07600243,70171.0,70170.0,0.001]
[1771131403608,0.07100243,70171.0,70168.0,0.07189104]
[1771131404569,0.07100243,70171.0,70168.0,0.00063371]
[1771131404780,0.07100243,70171.0,70168.0,0.07189109]
[1771131404981,0.07300243,70171.0,70168.0,0.07289109]
[1771131405205,0.07100243,70171.0,70168.0,0.00063371]
[1771131405400,0.00012,70180.0,70175.0,0.07125032]
[1771131405686,0.00012,70180.0,70174.0,0.07125129]
[1771131405850,0.00012,70180.0,70173.0,0.02289062]
[1771131406051,0.00012,70180.0,70168.0,0.00063371]
[1771131406052,0.07124726,70179.0,70171.0,0.07125375]
[1771131406400,0.02480367,70178.0,70168.0,0.00063371]
[1771131406649,0.09605444,70175.0,70168.0,0.00063371]
[1771131407555,0.07125283,70173.0,70168.0,0.00163371]
[1771131407734,0.02480367,70175.0,70169.0,0.0712562]
[1771131407900,0.07124963,70176.0,70169.0,0.0712562]
[1771131408306,0.02480367,70175.0,70171.0,0.003]
[1771131408502,0.02480367,70175.0,70168.0,0.00063371]
[1771131408747,0.02480367,70175.0,70169.0,0.07125628]
[1771131408947,0.02780367,70175.0,70169.0,0.07225628]
[1771131409128,0.02480367,70175.0,70169.0,0.07125628]
[1771131409323,0.02480367,70175.0,70171.0,0.001]
[1771131409533,0.02880367,70175.0,70171.0,0.001]
[1771131409730,0.02480367,70175.0,70169.0,0.07125628]
[1771131410736,0.09605452,70175.0,70168.0,0.07189104]
[1771131410945,0.09905452,70175.0,70169.0,0.001]
[1771131411980,0.02780367,70175.0,70169.0,0.07245634]
[1771131412206,0.0990542,70175.0,70169.0,0.07245634]
[1771131412336,0.02780367,70175.0,70169.0,0.07245634]
[1771131412542,0.07125344,70173.0,70169.0,0.0012]
[1771131412742,0.07079891,70174.0,70169.0,0.00062487]
[1771131413067,0.09560258,70174.0,70169.0,0.00062487]
[1771131413288,0.02480367,70170.0,70149.0,0.20463457]
[1771131413489,0.02480367,70170.0,70146.0,0.02289062]
[1771131413490,0.07126637,70160.0,70153.0,0.0712725]
[1771131413685,0.0960602,70169.0,70159.0,0.07126635]
[1771131413887,0.07126033,70166.0,70159.0,0.07126635]
[1771131414085,0.07126033,70166.0,70157.0,0.07126802]
[1771131414324,0.07126156,70165.0,70157.0,0.07126802]
[1771131414494,0.07125958,70166.0,70155.0,0.07127052]
[1771131414702,0.07126259,70164.0,70156.0,0.07126959]
[1771131414848,0.07126259,70164.0,70159.0,0.007]
[1771131415270,0.07126259,70164.0,70157.0,0.07126862]
[1771131415500,0.07126259,70164.0,70157.0,0.07726862]
[1771131415852,0.07126259,70164.0,70157.0,0.07126862]
[1771131416053,0.02480367,70169.0,70161.0,0.07126461]
[1771131416259,0.07126173,70164.0,70157.0,0.07126779]
[1771131416661,0.07126173,70164.0,70156.0,0.07126775]
[1771131416858,0.07126276,70163.0,70156.0,0.07126775]
[1771131417071,0.07126276,70163.0,70159.0,0.005]
[1771131417290,0.07126391,70162.0,70155.0,0.07126874]
[1771131417498,0.07126295,70163.0,70155.0,0.07126874]
[1771131417713,0.07126173,70164.0,70155.0,0.07126874]
[1771131417714,0.07126365,70162.0,70156.0,0.007]
[1771131417913,0.07126365,70162.0,70155.0,0.07126874]
[1771131418340,0.07126365,70162.0,70159.0,0.005]
[1771131418754,0.30984128,70167.0,70154.0,0.0002]
[1771131418958,0.07126962,70157.0,70155.0,0.007]
[1771131419417,0.07127075,70155.0,70147.0,0.0003179]
[1771131419615,0.07127246,70154.0,70147.0,0.07172661]
[1771131420035,0.07127246,70154.0,70148.0,0.07127782]
[1771131420266,0.07127075,70155.0,70148.0,0.07127782]
[1771131420483,0.07127075,70155.0,70147.0,0.07192686]
[1771131420731,0.07127201,70154.0,70147.0,0.07192686]
[1771131420936,0.07126989,70156.0,70149.0,0.07127666]
[1771131421132,0.30986499,70161.0,70148.0,0.22752519]
[1771131421133,0.02480367,70161.0,70150.0,0.07127506]
[1771131421327,0.07127,70156.0,70149.0,0.07127685]
[1771131421717,0.07127,70156.0,70148.0,0.07127719]
[1771131421931,0.07127196,70154.0,70147.0,0.0719262]
[1771131422136,0.07327196,70154.0,70148.0,0.08027773]
[1771131422403,0.002,70154.0,70148.0,0.08027773]
[1771131423482,0.07127111,70155.0,70148.0,0.07127773]
[1771131423684,0.07127049,70156.0,70147.0,0.22817346]
[1771131423685,0.07127343,70153.0,70149.0,0.003]
[1771131423886,0.0712746,70152.0,70147.0,0.00064827]
[1771131424265,0.07127343,70153.0,70147.0,0.00064827]
[1771131424970,0.002,70154.0,70148.0,0.005]
[1771131426371,0.07127199,70154.0,70148.0,0.07127782]
[1771131426734,0.008,70153.0,70147.0,0.00264827]
[1771131426941,0.07127144,70155.0,70148.0,0.07127785]
[1771131427227,0.07927266,70154.0,70148.0,0.002]
[1771131427579,0.07127266,70154.0,70148.0,0.0002]
[1771131428028,0.008,70153.0,70148.0,0.0002]
[1771131428198,0.00012,70150.0,70148.0,0.0002]
[1771131428406,0.00012,70150.0,70148.0,0.07147748]
[1771131428605,0.00012,70150.0,70149.0,0.07127685]
[1771131428810,0.00012,70150.0,70148.0,0.07147748]
[1771131429292,0.00012,70150.0,70148.0,0.0002]
[1771131429531,0.00012,70150.0,70148.0,0.0022]
[1771131430323,0.00012,70150.0,70148.0,0.0002]
[1771131430708,0.01012,70150.0,70148.0,0.0022]
[1771131430907,0.00012,70150.0,70148.0,0.0002]
[1771131431395,0.0713963,70150.0,70148.0,0.0002]
[1771131431563,0.00012,70150.0,70148.0,0.0002]
[1771131431765,0.01112,70150.0,70148.0,0.0022]
[1771131432964,0.00012,70150.0,70148.0,0.0002]
[1771131433381,0.00612,70150.0,70148.0,0.0022]
[1771131433589,0.00012,70150.0,70148.0,0.0002]
[1771131433875,0.00612,70150.0,70148.0,0.0022]
[1771131434138,0.00612,70150.0,70145.0,0.01495089]
[1771131434262,0.00025008,70150.0,70146.0,0.0712799]
[1771131434459,0.00625008,70150.0,70148.0,0.002]
[1771131434661,0.00625008,70150.0,70148.0,0.0002]
[1771131434891,0.00025008,70150.0,70148.0,0.0002]
[1771131435677,0.07152671,70150.0,70148.0,0.0002]
[1771131435896,0.00025008,70150.0,70148.0,0.0002]
[1771131436500,0.01125008,70150.0,70148.0,0.0022]
[1771131436701,0.00025008,70150.0,70148.0,0.0002]
[1771131437141,0.01025008,70150.0,70148.0,0.0022]
[1771131437353,0.0004,70154.0,70148.0,0.0022]
[1771131437354,5e-05,70158.0,70152.0,0.07127368]
[1771131437676,0.011,70150.0,70148.0,0.0022]
[1771131437821,0.011,70150.0,70148.0,0.00224341]
[1771131438021,0.07127252,70154.0,70148.0,0.00024341]
[1771131438318,0.01,70150.0,70148.0,0.00224341]
[1771131439085,0.01,70150.0,70142.0,0.2001431]
[1771131439295,0.341,70164.0,70129.0,0.0026177]
[1771131439526,0.08451503,70163.0,70152.0,0.22393686]
[1771131439675,0.29894732,70160.0,70152.0,0.22393686]
[1771131439879,0.29894732,70160.0,70152.0,0.02379376]
[1771131440088,0.07126669,70159.0,70148.0,0.2001431]
[1771131440286,0.07127447,70152.0,70145.0,0.07128023]
[1771131440532,0.29894732,70155.0,70141.0,0.02379376]
[1771131440692,0.0712796,70147.0,70141.0,0.02379376]
[1771131441210,0.07127803,70148.0,70141.0,0.09507782]
[1771131441417,0.07127803,70148.0,70142.0,0.07128384]
[1771131441617,0.07127904,70147.0,70141.0,0.09507867]
[1771131441922,0.07127904,70147.0,70141.0,0.02379376]
[1771131442239,0.07127898,70147.0,70141.0,0.09507872]
[1771131442530,0.07127898,70147.0,70141.0,0.12407872]
[1771131442817,0.29903893,70151.0,70141.0,0.02379376]
[1771131443120,0.29903893,70151.0,70141.0,0.04779376]
[1771131443121,0.0712803,70146.0,70141.0,0.04779376]
[1771131443570,0.0712803,70146.0,70141.0,0.02399376]
[1771131443763,0.0712803,70146.0,70141.0,0.04799376]
[1771131443930,0.0712803,70146.0,70141.0,0.02399376]
[1771131444338,0.004,70146.0,70141.0,0.04799376]
[1771131444543,0.004,70146.0,70142.0,0.07128396]
[1771131444772,0.004,70146.0,70141.0,0.04799376]
[1771131445351,0.004,70146.0,70141.0,0.09548432]
[1771131445557,0.004,70146.0,70143.0,0.22393686]
[1771131445780,0.07127712,70149.0,70143.0,0.2001431]
[1771131446016,5e-05,70158.0,70141.0,0.0242]
[1771131446190,0.01327299,70157.0,70153.0,0.22393686]
[1771131446340,0.07126796,70158.0,70153.0,0.22378907]
[1771131446798,0.28507277,70158.0,70148.0,0.29521465]
[1771131446951,0.004,70149.0,70148.0,0.29521465]
[1771131447160,0.07126698,70159.0,70145.0,0.2001431]
[1771131447400,0.07126698,70159.0,70152.0,0.0712732]
[1771131447606,0.07526777,70158.0,70153.0,0.026]
[1771131447962,0.004,70158.0,70153.0,0.026]
[1771131448168,0.004,70158.0,70153.0,0.24993686]
[1771131448456,0.004,70158.0,70155.0,0.07127002]
[1771131448674,0.00012,70160.0,70156.0,0.27141276]
[1771131448851,0.00012,70160.0,70157.0,0.02379376]
[1771131449630,0.001,70158.0,70157.0,0.02379376]
[1771131449848,0.00012,70160.0,70157.0,0.2001431]
[1771131450013,0.00012,70160.0,70159.0,0.07126669]
[1771131450218,0.00112,70160.0,70158.0,0.09506111]
[1771131450512,0.00012,70160.0,70158.0,0.09506111]
[1771131450973,0.00012,70160.0,70158.0,0.29520421]
[1771131451198,0.00012,70160.0,70158.0,0.02379376]
[1771131451407,0.00012,70160.0,70158.0,0.22393686]
[1771131451539,0.00012,70160.0,70158.0,0.09506143]
[1771131451740,0.00012,70160.0,70159.0,0.22393686]
[1771131452434,0.01012,70160.0,70159.0,0.22393686]
[1771131452560,0.00012,70160.0,70159.0,0.22393686]
[1771131452998,0.00912,70160.0,70159.0,0.22393686]
[1771131453348,0.34104341,70164.0,70160.0,0.22393686]
[1771131454294,4.341e-05,70164.0,70160.0,0.22393686]
[1771131454689,0.07079135,70165.0,70160.0,0.22393686]
[1771131455098,0.019,70164.0,70160.0,0.2001431]
[1771131455302,0.07126127,70165.0,70161.0,0.02379376]
[1771131455480,0.0711744,70165.0,70160.0,0.2001431]
[1771131455679,0.019,70164.0,70160.0,0.2001431]
[1771131455879,0.0711744,70165.0,70160.0,0.2001431]
[1771131456292,0.09168,70166.0,70157.0,0.02383876]
[1771131456293,0.019,70164.0,70157.0,0.02383876]
[1771131456506,0.07126351,70163.0,70157.0,0.02383876]
[1771131456703,0.07126234,70164.0,70157.0,0.02383876]
[1771131457828,0.09026234,70164.0,70157.0,0.02383876]
[1771131458224,0.07126429,70162.0,70157.0,0.02383876]
[1771131458784,0.07126234,70164.0,70157.0,0.02383876]
[1771131458906,0.07126308,70163.0,70157.0,0.02383876]
[1771131459114,0.07126308,70163.0,70154.0,0.24407328]
[1771131459434,0.07126179,70164.0,70158.0,0.07126754]
[1771131459630,0.019,70162.0,70156.0,0.07126972]
[1771131459806,0.09026369,70162.0,70155.0,0.07127036]
[1771131461840,0.07126369,70162.0,70155.0,0.07127036]
[1771131462041,0.07126384,70162.0,70155.0,0.07127075]
[1771131462784,0.08626384,70162.0,70155.0,0.07127075]
[1771131464203,0.015,70162.0,70156.0,0.07126944]
[1771131464668,0.08626398,70162.0,70155.0,0.07127053]
[1771131464981,0.07126398,70162.0,70155.0,0.07127053]
[1771131465387,0.07526398,70162.0,70155.0,0.07127053]
[1771131465644,0.07126398,70162.0,70155.0,0.07127053]
[1771131466146,0.07526398,70162.0,70155.0,0.07127053]
[1771131466342,0.004,70162.0,70154.0,0.1728455]
[1771131466546,0.004,70162.0,70159.0,0.07126601]
[1771131467534,0.0004,70165.0,70159.0,0.07126601]
[1771131468139,0.0004,70165.0,70159.0,0.07146601]
[1771131468937,0.07166077,70165.0,70159.0,0.07146601]
[1771131471138,0.0004,70165.0,70158.0,0.06801013]
[1771131471524,0.0004,70165.0,70159.0,0.07126666]
[1771131472490,0.07166062,70165.0,70159.0,0.07126666]
[1771131473788,0.00012,70170.0,70157.0,0.20897508]
[1771131474070,0.00012,70170.0,70163.0,0.07126204]
[1771131474224,0.00012,70170.0,70162.0,0.07126301]
[1771131474410,0.00012,70170.0,70163.0,0.0712617]
[1771131474614,0.00012,70170.0,70164.0,0.07126159]
[1771131474825,0.00012,70170.0,70161.0,0.07130954]
[1771131475046,0.07125888,70167.0,70161.0,4.5e-05]
[1771131475266,0.07125764,70168.0,70161.0,0.07130937]
[1771131475463,0.07137645,70170.0,70161.0,4.5e-05]
[1771131475707,0.07125763,70168.0,70161.0,0.07130936]
[1771131475909,0.00012,70170.0,70161.0,4.5e-05]
[1771131476055,0.00012,70170.0,70164.0,0.07126086]
[1771131476262,0.00012,70170.0,70166.0,0.07125937]
[1771131476672,0.00012,70170.0,70165.0,0.07125872]
[1771131476897,0.07125757,70168.0,70161.0,0.07130925]
[1771131477259,0.00052,70170.0,70161.0,0.07130925]
[1771131477260,0.07126101,70165.0,70161.0,4.5e-05]
[1771131477454,0.07126205,70164.0,70161.0,4.5e-05]
[1771131478791,0.02442021,70169.0,70161.0,4.5e-05]
[1771131478966,0.07126022,70166.0,70161.0,4.5e-05]
[1771131479167,0.00052,70170.0,70164.0,0.07126069]
[1771131479394,0.07177594,70170.0,70163.0,0.07126171]
[1771131479571,0.07177594,70170.0,70162.0,0.07126175]
[1771131479572,0.00052,70170.0,70162.0,0.07126175]
[1771131479769,0.00052,70170.0,70161.0,4.5e-05]
[1771131479969,0.00052,70170.0,70168.0,0.07125749]
[1771131480176,0.00052,70170.0,70166.0,0.07125867]
[1771131480424,0.00052,70170.0,70168.0,0.07125658]
[1771131480625,0.00052,70170.0,70168.0,0.07125745]
[1771131481182,0.00052,70170.0,70167.0,0.07125855]
[1771131481403,0.00052,70170.0,70166.0,0.07125931]
[1771131481605,0.00752,70170.0,70166.0,0.07125931]
[1771131482004,0.00052,70170.0,70166.0,0.09569365]
[1771131482250,0.00752,70170.0,70166.0,0.09569365]
[1771131482479,0.00052,70170.0,70166.0,0.09569365]
[1771131482653,0.00052,70170.0,70167.0,0.07125769]
[1771131482851,0.00752,70170.0,70168.0,0.07125717]
[1771131483059,0.00752,70170.0,70169.0,0.07125653]
[1771131484020,0.00052,70170.0,70169.0,0.07125653]
[1771131484220,0.00052,70170.0,70169.0,0.09569087]
[1771131484422,0.00752,70170.0,70169.0,0.09569087]
[1771131484644,0.00752,70170.0,70169.0,0.07125653]
[1771131485433,0.0004,70173.0,70169.0,0.07125653]
[1771131485644,0.0004,70173.0,70172.0,0.07125349]
[1771131488693,0.0006718,70183.0,70176.0,0.28499674]
[1771131488991,0.0006718,70183.0,70177.0,0.07124757]
[1771131489204,0.0006718,70183.0,70175.0,0.02443434]
[1771131489401,0.0006718,70183.0,70178.0,0.06411728]
[1771131489579,0.0006718,70183.0,70177.0,0.07124645]
[1771131489765,0.00110599,70183.0,70177.0,0.07124645]
[1771131490156,0.00110599,70183.0,70178.0,0.07124656]
[1771131490593,0.00110599,70183.0,70177.0,0.07124814]
[1771131490793,0.00110599,70183.0,70178.0,0.07124649]
[1771131491346,0.00110599,70183.0,70176.0,0.02443434]
[1771131491680,0.00110599,70183.0,70177.0,0.07124841]
[1771131491893,0.00110599,70183.0,70178.0,0.0712465]
[1771131493372,0.00110599,70183.0,70176.0,0.02443434]
[1771131493514,0.00110599,70183.0,70179.0,0.07124543]
[1771131493717,0.00110599,70183.0,70176.0,0.02443434]
[1771131493940,0.00110599,70183.0,70179.0,0.07124624]
[1771131494345,0.00110599,70183.0,70180.0,0.07124534]
[1771131494547,0.00110599,70183.0,70180.0,0.07109756]
[1771131495170,0.00110599,70183.0,70181.0,0.07124418]
[1771131495442,0.00110599,70183.0,70178.0,0.07124667]
[1771131496940,0.00110599,70183.0,70179.0,0.0712456]
[1771131497145,0.00110599,70183.0,70178.0,0.07124667]
[1771131498174,0.00110599,70183.0,70178.0,0.09532145]
[1771131498378,0.00110599,70183.0,70178.0,0.02407478]
[1771131498810,0.0004,70185.0,70184.0,0.0712413]
[1771131499409,0.0004,70185.0,70181.0,0.07124398]
[1771131500674,0.0004,70183.0,70181.0,0.07124398]
[1771131502474,0.0004,70183.0,70182.0,0.07124333]
[1771131502637,0.0004,70185.0,70184.0,0.0712413]
[1771131504304,0.0004,70185.0,70182.0,0.07124333]
[1771131504497,0.0004,70185.0,70181.0,0.07124415]
[1771131505313,0.00048039,70185.0,70181.0,0.07124415]
[1771131506925,0.00048039,70185.0,70180.0,0.07124518]
[1771131507735,0.02425267,70185.0,70180.0,0.07124518]
[1771131507936,0.02425267,70185.0,70179.0,0.07124638]
[1771131508148,0.09549322,70185.0,70176.0,0.41236848]
[1771131508303,0.07124227,70184.0,70178.0,0.07124737]
[1771131508503,0.02377228,70180.0,70174.0,0.07125144]
[1771131508912,0.02360965,70180.0,70174.0,0.07125144]
[1771131509164,0.09485526,70180.0,70173.0,0.0712522]
[1771131509407,0.02360965,70180.0,70173.0,0.0712522]
[1771131509755,0.07124627,70181.0,70174.0,0.07125143]
[1771131510341,0.07124359,70182.0,70175.0,0.07125014]
[1771131510705,0.005,70180.0,70176.0,0.07124849]
[1771131510908,0.09501466,70183.0,70177.0,0.07124807]
[1771131511099,0.004,70181.0,70177.0,0.07124807]
[1771131511347,0.02777228,70181.0,70177.0,0.07124807]
[1771131511537,0.02377228,70181.0,70177.0,0.07124807]
[1771131512841,0.02377228,70181.0,70176.0,0.07124849]
[1771131512988,0.02377228,70181.0,70177.0,0.0712482]
[1771131513188,0.03277228,70181.0,70177.0,0.0712482]
[1771131513632,0.09501466,70183.0,70177.0,0.0714482]
[1771131513830,0.008,70181.0,70177.0,0.0714482]
[1771131514032,0.03177228,70181.0,70177.0,0.0714482]
[1771131514239,0.07164238,70183.0,70177.0,0.0714482]
[1771131514437,0.009,70181.0,70177.0,0.0714482]
[1771131514611,0.009,70181.0,70178.0,0.07124672]
[1771131515455,0.0004,70183.0,70177.0,0.0002]
[1771131515606,0.0004,70183.0,70182.0,0.07124333]
[1771131516020,1e-08,70183.0,70182.0,0.07124333]
[1771131516227,0.00048039,70185.0,70183.0,0.07124138]
[1771131516420,0.00048039,70185.0,70184.0,0.0712413]
[1771131517889,0.00948039,70185.0,70184.0,0.0712413]
[1771131518042,0.00045,70191.0,70187.0,0.07123774]
[1771131518393,0.00045,70191.0,70186.0,0.06628267]
[1771131518604,0.0004,70191.0,70186.0,0.06628267]
[1771131519484,0.0004,70191.0,70187.0,0.07123826]
[1771131519689,0.0004,70191.0,70187.0,0.02186301]
[1771131521634,0.0004,70191.0,70176.0,0.1978223]
[1771131521844,0.0004,70191.0,70186.0,0.07123859]
[1771131523241,0.0004,70191.0,70187.0,0.07123813]
[1771131523664,0.0004,70191.0,70186.0,0.07123859]
[1771131524831,0.0004,70191.0,70185.0,0.07123998]
[1771131526415,0.07123704,70189.0,70182.0,0.07124267]
[1771131526605,0.07123752,70188.0,70181.0,0.0002]
[1771131526805,0.0006138,70190.0,70181.0,0.0002]
[1771131527058,0.07184999,70190.0,70181.0,0.0002]
[1771131527768,0.07123627,70189.0,70183.0,0.07124206]
[1771131527962,0.0006138,70190.0,70184.0,0.07124082]
[1771131528522,0.07184982,70190.0,70183.0,0.07124206]
[1771131528734,0.07123632,70189.0,70183.0,0.07124206]
[1771131528969,0.0006138,70190.0,70184.0,0.07124098]
[1771131529641,0.0006138,70190.0,70184.0,0.07124085]
[1771131529842,0.0006138,70190.0,70184.0,0.0712413]
[1771131530043,0.0006138,70190.0,70185.0,0.07124001]
[1771131530449,0.0006138,70190.0,70184.0,0.07124044]
[1771131530816,0.0006138,70190.0,70185.0,0.07124005]
[1771131531272,0.0006138,70190.0,70184.0,0.07124105]
[1771131531464,0.0006138,70190.0,70185.0,0.07124008]
[1771131531644,0.0006138,70190.0,70185.0,0.07109223]
[1771131531860,0.0006138,70190.0,70186.0,0.07123885]
[1771131532027,0.0006138,70190.0,70185.0,0.07123952]
[1771131532229,0.0006138,70190.0,70185.0,0.07123947]
[1771131532790,0.07184929,70190.0,70184.0,0.0712413]
[1771131533691,0.0006138,70190.0,70183.0,0.0002]
[1771131533866,0.0006138,70190.0,70188.0,0.07094105]
[1771131534078,0.0006138,70190.0,70187.0,0.07123754]
[1771131534791,0.0006138,70190.0,70188.0,0.07123663]
[1771131535543,0.0006138,70190.0,70189.0,0.07123623]
[1771131536055,0.0006138,70190.0,70183.0,0.0259777]
[1771131536258,0.0006138,70190.0,70187.0,0.07123748]
[1771131536457,0.0006138,70190.0,70188.0,0.07123658]
[1771131537479,0.0006138,70190.0,70186.0,0.07123732]
[1771131538050,0.0006138,70190.0,70188.0,0.07123717]
[1771131539472,0.0006138,70190.0,70186.0,0.07123906]
[1771131540034,0.0006138,70190.0,70183.0,0.30994456]
[1771131540035,0.0006138,70190.0,70188.0,0.07123639]
[1771131540311,0.0006138,70190.0,70189.0,0.07123623]
[1771131540610,0.0006138,70190.0,70188.0,0.07123683]
[1771131540811,0.0006138,70190.0,70184.0,0.0712413]
[1771131541011,0.0006138,70190.0,70186.0,0.07123905]
[1771131541424,0.0006138,70190.0,70187.0,0.07123824]
[1771131541829,0.0006138,70190.0,70188.0,0.07123706]
[1771131542301,0.0006138,70190.0,70187.0,0.07123794]
[1771131542502,0.0006138,70190.0,70186.0,0.07123909]
[1771131544710,0.0006138,70190.0,70187.0,0.07123787]
[1771131544905,0.0006138,70190.0,70187.0,0.07123747]
[1771131545331,0.0006138,70190.0,70188.0,0.07123679]
[1771131545887,0.0006138,70190.0,70187.0,0.07123641]
[1771131546095,0.0006138,70190.0,70185.0,0.07123982]
[1771131548094,0.0006138,70190.0,70185.0,0.07109207]
[1771131548299,0.0006138,70190.0,70185.0,0.07123969]
[1771131556783,9.38e-05,70190.0,70185.0,0.07123969]
[1771131556949,0.02372469,70194.0,70184.0,0.04292339]